bitfinex/quotes_ETHUSD_20250519
["timestamp","ask_amount","ask_price","bid_price","bid_amount"]
[1747623697458,17.04366825,2397.0,2396.7,0.66666667]
[1747623697777,8.6583344,2396.8,2396.7,0.66666667]
[1747623698089,17.1473344,2396.8,2396.7,0.66666667]
[1747623698460,25.1473344,2396.8,2396.7,0.66666667]
[1747623698692,26.11694039,2396.8,2396.7,0.66666667]
[1747623699369,34.59694039,2396.8,2396.7,0.66666667]
[1747623699795,17.62794039,2396.8,2396.7,0.66666667]
[1747623699992,34.59794039,2396.8,2396.7,0.66666667]
[1747623700387,17.62794039,2396.8,2396.7,0.66666667]
[1747623700691,9.62794039,2396.8,2396.7,0.66666667]
[1747623700886,18.10694039,2396.8,2396.7,0.66666667]
[1747623701084,18.10594039,2396.8,2396.7,0.66666667]
[1747623701965,28.17594039,2396.8,2396.7,0.66666667]
[1747623702161,28.17694039,2396.8,2396.7,0.66666667]
[1747623702361,28.17594039,2396.8,2396.7,0.66666667]
[1747623702906,36.17594039,2396.8,2396.7,0.66666667]
[1747623703488,36.97594039,2396.8,2396.7,0.66666667]
[1747623704604,45.46694039,2396.8,2396.7,0.66666667]
[1747623704808,45.46694039,2396.8,2395.8,0.02014319]
[1747623704809,4.1737969,2395.9,2395.8,0.02014319]
[1747623705106,13.0576969,2395.9,2395.8,0.02014319]
[1747623705963,4.1737969,2395.9,2395.8,0.02014319]
[1747623706167,12.6517969,2395.9,2395.8,0.02014319]
[1747623707984,12.6507969,2395.9,2395.8,0.02014319]
[1747623708186,4.1737969,2395.9,2395.8,0.02014319]
[1747623709484,12.6507969,2395.9,2395.8,0.02014319]
[1747623710402,4.1737969,2395.9,2395.8,0.02014319]
[1747623710595,4.1737969,2395.9,2395.8,1.36974319]
[1747623711508,10.07,2396.7,2395.9,0.55]
[1747623711711,0.5736,2396.8,2396.2,0.55]
[1747623711712,4.17310019,2396.3,2396.2,0.55]
[1747623712233,4.17263067,2396.6,2396.4,0.55]
[1747623712536,4.17288533,2396.5,2396.4,0.55]
[1747623715948,4.17269915,2396.6,2396.4,0.55]
[1747623716139,4.17269915,2396.6,2396.5,9.025]
[1747623716307,12.64418545,2397.4,2396.8,0.55]
[1747623716504,8.473,2397.4,2396.8,0.55]
[1747623716700,19.1166,2397.5,2396.8,0.55]
[1747623717030,4.17260608,2396.6,2396.5,8.475]
[1747623717231,4.17260608,2396.6,2396.5,9.025]
[1747623717548,4.13102875,2396.5,2396.4,8.475]
[1747623717828,4.17327435,2396.2,2396.1,0.8092]
[1747623718029,4.17327435,2396.2,2396.1,17.8342]
[1747623718334,4.17327435,2396.2,2396.1,0.8092]
[1747623718513,4.1737969,2395.9,2395.8,0.82184319]
[1747623718717,4.1737969,2395.9,2395.8,9.84684319]
[1747623718913,4.17365162,2396.0,2395.9,0.55]
[1747623719101,4.1736227,2396.0,2395.9,0.55]
[1747623719632,4.1736227,2396.0,2395.9,9.025]
[1747623719834,4.17351193,2396.1,2395.9,9.025]
[1747623720042,4.1735251,2396.1,2395.9,9.025]
[1747623720207,4.1735251,2396.1,2396.0,9.025]
[1747623720702,4.1735251,2396.1,2396.0,0.55]
[1747623720925,4.1735251,2396.1,2396.0,9.025]
[1747623721356,4.1733023,2396.2,2395.8,0.82184319]
[1747623721511,4.1737969,2395.9,2395.8,0.02014319]
[1747623721706,4.1737969,2395.9,2395.8,8.49514319]
[1747623721935,4.1737969,2395.9,2395.8,9.04514319]
[1747623722137,4.17367005,2396.0,2395.9,0.55]
[1747623722619,4.17318515,2396.3,2395.9,11.25671432]
[1747623722818,4.17318515,2396.3,2396.1,0.55]
[1747623723146,4.17327435,2396.2,2396.1,0.55]
[1747623723642,4.17311385,2396.3,2396.1,0.55]
[1747623723846,4.17327435,2396.2,2396.1,0.55]
[1747623724337,4.17318836,2396.3,2396.1,0.55]
[1747623725534,4.1737969,2395.9,2395.8,0.02014319]
[1747623725730,4.1737969,2395.9,2395.8,8.02014319]
[1747623725946,4.1737969,2395.9,2395.8,8.57014319]
[1747623726642,0.5736,2396.5,2395.9,0.55]
[1747623726947,4.17222963,2396.8,2396.0,0.833]
[1747623727157,4.17303712,2396.4,2396.1,8.55]
[1747623727364,4.17303712,2396.4,2396.3,0.55]
[1747623727560,4.1727968,2396.5,2396.3,8.55]
[1747623727711,10.07,2396.9,2396.3,8.55]
[1747623727916,4.17233155,2396.8,2396.5,0.55]
[1747623728147,4.17233155,2396.8,2396.5,9.95725354]
[1747623728952,4.17213705,2396.9,2396.5,9.95725354]
[1747623729155,0.49451926,2397.2,2396.9,4.7219177]
[1747623729316,0.49451926,2397.2,2397.1,9.3078]
[1747623729511,0.49451926,2397.2,2397.1,11.94515114]
[1747623730024,9.0396,2398.1,2397.1,11.94515114]
[1747623730258,4.17118988,2397.4,2397.1,11.94515114]
[1747623730559,4.17110024,2397.5,2397.1,11.94515114]
[1747623730973,4.1709554,2397.6,2397.1,11.94515114]
[1747623731140,4.74368577,2398.1,2397.3,0.55]
[1747623731363,4.17075956,2397.7,2397.3,0.55]
[1747623731657,4.17030169,2398.0,2397.5,8.55]
[1747623731865,8.465,2398.3,2397.7,0.55]
[1747623732167,5.49065522,2398.2,2397.7,0.55]
[1747623732471,4.16960255,2398.4,2397.9,8.55]
[1747623732613,2.04328721,2398.9,2398.0,0.04169489]
[1747623732817,2.04328721,2398.9,2398.3,0.55]
[1747623733009,4.16944629,2398.4,2398.3,0.55]
[1747623733213,4.16930433,2398.5,2398.3,0.55]
[1747623733214,4.16935367,2398.5,2398.3,0.55]
[1747623733546,4.1690589,2398.7,2398.4,0.7519]
[1747623733861,4.66272518,2399.2,2398.5,0.55]
[1747623733862,4.16848576,2399.0,2398.5,0.55]
[1747623734057,4.16833712,2399.1,2398.9,0.55]
[1747623734215,4.1684035,2399.0,2398.9,0.55]
[1747623734855,4.1684035,2399.0,2398.9,9.023]
[1747623735354,4.16857726,2398.9,2398.8,0.55]
[1747623735555,4.16857726,2398.9,2398.3,0.31219902]
[1747623735556,4.16962014,2398.3,2398.1,8.471]
[1747623735855,4.17014178,2398.0,2397.9,0.7792]
[1747623736019,4.17014178,2398.0,2397.9,17.2502]
[1747623736352,4.16999347,2398.1,2397.9,17.2502]
[1747623736744,4.17014178,2398.0,2397.9,17.2502]
[1747623736951,4.17014178,2398.0,2397.9,8.471]
[1747623737142,4.17031569,2397.9,2397.8,18.011]
[1747623737347,4.17022546,2398.0,2397.8,26.482]
[1747623737648,4.17031569,2397.9,2397.6,0.8101]
[1747623737831,4.17101147,2397.5,2397.3,8.471]
[1747623738036,4.17118545,2397.4,2397.3,8.471]
[1747623738529,4.17118545,2397.4,2397.3,9.021]
[1747623738726,4.17118545,2397.4,2397.3,8.471]
[1747623738958,4.17153345,2397.2,2396.9,1.2227497]
[1747623739164,4.17153345,2397.2,2397.1,8.77990378]
[1747623739461,4.17170747,2397.1,2397.0,0.31009278]
[1747623739650,4.17170747,2397.1,2397.0,9.02]
[1747623739826,4.17161929,2397.2,2397.0,9.02]
[1747623740222,4.17161929,2397.2,2397.0,8.47]
[1747623740423,4.17161929,2397.2,2397.0,11.04371]
[1747623740619,4.17161929,2397.2,2397.0,2.57371]
[1747623740862,4.17161929,2397.2,2397.1,8.47]
[1747623741163,4.17119151,2397.4,2397.2,0.55]
[1747623741523,0.83403164,2397.9,2397.2,0.55]
[1747623741863,4.16964456,2398.3,2397.4,0.55]
[1747623742023,4.17014718,2398.0,2397.6,0.55]
[1747623742225,4.17031569,2397.9,2397.8,0.55]
[1747623742419,4.17031569,2397.9,2397.7,8.457]
[1747623742420,4.17048961,2397.8,2397.7,8.457]
[1747623742665,4.17048961,2397.8,2397.7,9.007]
[1747623743473,4.17048961,2397.8,2397.7,0.55]
[1747623743659,4.17048961,2397.8,2397.7,9.007]
[1747623744046,4.17020105,2398.0,2397.8,0.55]
[1747623744250,4.16962014,2398.3,2397.8,0.55]
[1747623744449,4.17043147,2397.9,2397.6,9.005]
[1747623744637,4.17043147,2397.9,2397.8,0.55]
[1747623745258,0.5736,2398.4,2397.8,0.55]
[1747623745461,4.16998664,2398.1,2397.8,0.55]
[1747623745665,14.23908176,2398.7,2398.0,0.55]
[1747623745839,4.66251456,2399.3,2398.0,0.55]
[1747623745840,4.16843497,2399.0,2398.2,0.55]
[1747623746042,4.74190095,2399.1,2398.4,0.55]
[1747623746361,4.16893443,2398.7,2398.6,0.55]
[1747623747762,4.16909864,2398.6,2398.5,18.009]
[1747623748067,4.16909864,2398.6,2398.5,27.014]
[1747623748361,4.16879666,2398.8,2398.6,0.55]
[1747623748560,4.16889419,2398.8,2398.6,3.2514]
[1747623748965,4.16846043,2399.0,2398.6,3.2514]
[1747623749151,0.5736,2399.5,2398.8,0.55]
[1747623749481,0.5736,2399.5,2398.7,8.7973]
[1747623749482,10.07,2399.7,2399.0,0.55]
[1747623749646,4.16815775,2399.2,2399.1,8.455]
[1747623750038,4.16789626,2399.3,2399.2,0.55]
[1747623750457,0.5736,2399.9,2399.4,0.55]
[1747623750679,4.16765288,2399.5,2399.4,0.55]
[1747623751279,8.45,2400.1,2399.4,18.555]
[1747623751444,4.1675349,2399.5,2399.4,18.555]
[1747623753241,4.16722184,2399.7,2399.4,18.555]
[1747623754076,4.16663217,2400.1,2399.6,0.55]
[1747623754392,4.16684028,2399.9,2399.8,8.55]
[1747623755841,4.1661625,2400.3,2399.4,18.005]
[1747623755842,4.1675349,2399.5,2399.4,18.005]
[1747623756287,4.1675349,2399.5,2399.4,26.456]
[1747623756455,4.1684035,2399.0,2398.7,18.30790378]
[1747623756647,4.16875104,2398.8,2398.7,26.75890378]
[1747623757678,4.16875104,2398.8,2398.7,17.998]
[1747623757965,4.16875104,2398.8,2398.7,26.449]
[1747623758790,4.16860541,2398.9,2398.7,26.999]
[1747623759000,4.16875104,2398.8,2398.7,28.94404488]
[1747623759501,4.16875104,2398.8,2398.7,26.45]
[1747623764177,4.16875104,2398.8,2398.7,27.0]
[1747623765219,4.16875104,2398.8,2398.7,26.45]
[1747623765726,4.16875104,2398.8,2398.7,27.0]
[1747623769723,4.16875104,2398.8,2398.7,26.45]
[1747623769884,5.00248496,2398.8,2398.7,26.45]
[1747623771316,4.17033863,2397.9,2397.8,18.7747]
[1747623771629,4.74246789,2398.8,2397.9,8.0]
[1747623771810,0.5736,2399.1,2398.3,0.55]
[1747623771993,10.07,2399.3,2398.6,0.7737]
[1747623772179,4.16857726,2398.9,2398.8,0.55]
[1747623772387,4.16752655,2399.6,2398.8,0.55]
[1747623772388,4.16758175,2399.5,2398.8,8.991]
[1747623772586,4.1684265,2399.0,2398.8,8.991]
[1747623773000,4.16857726,2398.9,2398.8,16.991]
[1747623773322,4.16857726,2398.9,2398.8,29.84598184]
[1747623773885,4.16843936,2399.0,2398.8,29.84598184]
[1747623774110,4.16819985,2399.2,2398.8,29.84598184]
[1747623774439,4.16834893,2399.1,2398.8,29.84598184]
[1747623774728,4.16840662,2399.0,2398.8,29.84598184]
[1747623774891,4.16840662,2399.0,2398.9,4.6481927]
[1747623776126,4.16827578,2399.1,2399.0,0.55]
[1747623776313,4.16827578,2399.1,2399.0,1.3649]
[1747623777618,4.16410694,2399.1,2399.0,1.3649]
[1747623780525,4.16410694,2399.1,2399.0,0.55]
[1747623780741,4.16843559,2399.0,2398.9,0.55]
[1747623781428,4.16832351,2399.1,2398.9,1.7779039]
[1747623781629,0.5736,2399.9,2399.0,0.7833]
[1747623781791,0.5736,2399.9,2399.1,0.55]
[1747623781992,4.16788229,2399.3,2399.2,8.44]
[1747623782419,4.16788229,2399.3,2399.2,8.99]
[1747623783727,4.16822975,2399.1,2399.0,1.3333]
[1747623783916,4.16822975,2399.1,2399.0,9.3333]
[1747623784121,4.16822975,2399.1,2399.0,0.55]
[1747623784414,4.16822975,2399.1,2399.0,8.99]
[1747623788634,4.16793939,2399.3,2399.0,10.72057891]
[1747623788811,4.16800411,2399.3,2399.1,9.3716]
[1747623789751,4.16805601,2399.2,2399.1,9.3716]
[1747623789924,4.16797843,2399.3,2399.1,9.3716]
[1747623790345,4.16805601,2399.2,2399.1,0.55]
[1747623790516,4.16857726,2398.9,2398.8,9.44729292]
[1747623790716,4.16857726,2398.9,2398.8,21.22338718]
[1747623790946,4.16849637,2399.0,2398.8,21.22338718]
[1747623791248,7.77872753,2399.7,2398.8,21.22338718]
[1747623791249,4.16734059,2399.7,2398.9,0.55]
[1747623791449,4.16778783,2399.4,2399.1,0.55]
[1747623791746,4.16778783,2399.4,2399.2,0.93716]
[1747623792050,4.16762435,2399.5,2399.3,8.99]
[1747623792352,4.16747465,2399.6,2399.5,0.55]
[1747623793134,4.16770859,2399.4,2399.3,0.55]
[1747623793335,4.16770859,2399.4,2399.3,16.99]
[1747623793673,4.16770859,2399.4,2399.3,11.268076]
[1747623793949,4.16770859,2399.4,2399.3,16.99]
[1747623795372,4.16760814,2399.5,2399.3,16.99]
[1747623795671,4.58296266,2400.2,2399.3,16.99]
[1747623795672,0.5736,2400.3,2399.5,0.55]
[1747623795820,4.16657794,2400.1,2399.7,0.55]
[1747623796013,4.16657794,2400.1,2399.9,0.55]
[1747623796645,4.16632194,2400.2,2399.9,9.12609654]
[1747623796646,4.16639683,2400.2,2399.9,9.12609654]
[1747623798019,4.16620354,2400.3,2399.9,9.12609654]
[1747623798353,4.16490388,2401.1,2399.6,30.59429962]
[1747623798354,4.16704234,2399.8,2399.6,17.997]
[1747623798517,4.74096122,2399.6,2399.5,8.74890378]
[1747623799132,4.16736122,2399.6,2399.5,9.29890378]
[1747623799332,4.16736122,2399.6,2399.5,0.30990378]
[1747623799531,5.0581761,2399.6,2399.5,8.74890378]
[1747623799735,4.16736122,2399.6,2399.5,8.74317758]
[1747623800554,4.16736122,2399.6,2399.5,8.439]
[1747623805157,4.16675333,2400.0,2399.6,0.55]
[1747623805457,4.16693319,2399.9,2399.6,8.55]
[1747623805825,4.1670502,2399.8,2399.6,8.55]
[1747623806157,4.16718756,2399.7,2399.6,8.55]
[1747623806349,4.16708561,2399.8,2399.6,8.55]
[1747623807062,4.16731317,2399.7,2399.5,0.55]
[1747623807230,4.16718756,2399.7,2399.6,8.976]
[1747623807850,4.1670805,2399.8,2399.7,0.55]
[1747623808063,4.16675139,2400.0,2399.7,2.3026]
[1747623808263,4.16675139,2400.0,2399.7,28.2976]
[1747623808953,4.16701391,2399.8,2399.7,28.2976]
[1747623809156,4.16701391,2399.8,2399.7,26.545]
[1747623809531,4.16690243,2399.9,2399.7,26.545]
[1747623809732,4.16675928,2400.0,2399.7,26.545]
[1747623810497,4.16701391,2399.8,2399.7,26.545]
[1747623810699,4.16684363,2399.9,2399.7,26.545]
[1747623810894,0.5736,2400.4,2399.7,30.45885306]
[1747623811051,4.16640497,2400.2,2399.9,0.55]
[1747623811757,4.16556233,2400.7,2400.4,0.55]
[1747623811939,4.1652692,2400.9,2400.6,0.55]
[1747623812135,4.16545174,2400.7,2400.6,0.55]
[1747623813155,4.16562526,2400.6,2400.5,8.426]
[1747623813471,4.16562526,2400.6,2400.5,8.976]
[1747623816956,4.16631947,2400.2,2400.1,8.8311]
[1747623817173,4.16631947,2400.2,2400.1,8.424]
[1747623817341,4.16631947,2400.2,2400.1,8.974]
[1747623817545,4.16684028,2399.9,2399.7,17.995]
[1747623817744,4.16718756,2399.7,2399.6,8.424]
[1747623818481,4.74078756,2399.7,2399.6,8.424]
[1747623819476,4.16822975,2399.1,2399.0,18.8041]
[1747623819646,4.16822975,2399.1,2399.0,35.7791]
[1747623819846,4.16822975,2399.1,2399.0,27.7791]
[1747623820981,4.16822975,2399.1,2399.0,26.416]
[1747623821172,5.001861,2399.1,2399.0,8.425]
[1747623822388,5.001861,2399.1,2398.3,18.40450346]
[1747623822389,4.74304629,2398.4,2398.3,0.41250346]
[1747623822604,4.74408961,2397.8,2397.7,0.82513766]
[1747623822744,17.6643556,2397.8,2397.7,0.82513766]
[1747623823253,14.05253143,2397.8,2397.7,0.82513766]
[1747623823452,5.63553143,2397.8,2397.7,0.82513766]
[1747623823792,4.17048961,2397.8,2397.7,0.82513766]
[1747623824373,4.17032856,2397.9,2397.8,0.55]
[1747623826482,4.17091445,2397.6,2397.5,0.55]
[1747623826993,4.1707626,2397.7,2397.5,0.55]
[1747623827197,4.17051022,2397.8,2397.5,0.55]
[1747623827503,4.17031435,2398.0,2397.5,2.32669]
[1747623828079,0.5736,2398.4,2397.6,4.17074426]
[1747623828264,0.5736,2398.4,2397.5,10.32669]
[1747623828265,8.418,2398.5,2397.9,0.55]
[1747623828471,4.16998458,2398.1,2397.9,8.98]
[1747623828671,8.418,2398.5,2397.9,8.98]
[1747623828672,4.17014178,2398.0,2397.9,8.98]
[1747623829572,8.419,2398.6,2397.9,10.678]
[1747623829769,10.07,2398.9,2398.1,4.7199468]
[1747623829770,4.16881246,2398.8,2398.1,4.7199468]
[1747623829974,0.83363125,2399.1,2398.3,8.55]
[1747623830203,4.16920394,2398.6,2398.4,8.43]
[1747623830502,4.16879517,2398.8,2398.4,8.43]
[1747623830708,4.16871202,2398.9,2398.4,8.43]
[1747623830709,4.16865103,2398.9,2398.4,8.43]
[1747623830911,0.5736,2399.3,2398.5,9.42378845]
[1747623831206,4.16745827,2399.6,2398.8,0.55]
[1747623831406,4.16769881,2399.5,2399.0,8.55]
[1747623833221,8.9916,2399.7,2399.0,8.55]
[1747623833381,4.16796915,2399.3,2399.0,8.55]
[1747623833795,4.16796915,2399.3,2399.0,9.11145889]
[1747623834540,4.16756499,2399.5,2399.0,9.11145889]
[1747623834747,0.5736,2400.0,2399.1,0.7714]
[1747623834913,4.16715623,2399.8,2399.2,8.55]
[1747623835115,4.16676821,2400.0,2399.4,0.55]
[1747623835421,12.58331947,2400.2,2399.6,0.55]
[1747623835422,4.16652442,2400.1,2399.6,0.55]
[1747623835798,12.58334242,2400.2,2399.6,0.55]
[1747623836097,4.16634242,2400.2,2399.6,0.55]
[1747623836289,0.5736,2400.6,2399.8,0.55]
[1747623836498,4.16625906,2400.3,2399.8,0.55]
[1747623836678,4.16597732,2400.4,2399.8,0.55]
[1747623837018,4.1661498,2400.3,2399.8,14.06585543]
[1747623837813,4.1661498,2400.3,2399.8,32.06385543]
[1747623838019,4.16635192,2400.2,2399.8,27.89685867]
[1747623838323,4.16610579,2400.4,2399.8,27.89685867]
[1747623838497,4.16610579,2400.4,2400.0,8.55]
[1747623838696,4.16610579,2400.4,2400.2,0.55]
[1747623838909,4.16614589,2400.3,2400.2,0.55]
[1747623840520,4.16684028,2399.9,2399.8,26.548]
[1747623840683,4.16684028,2399.9,2399.8,34.413]
[1747623840888,4.58352431,2399.9,2399.8,26.963]
[1747623841286,4.58352431,2399.9,2399.8,17.998]
[1747623841817,4.16701391,2399.8,2399.7,8.415]
[1747623841984,4.16687294,2399.9,2399.8,0.55]
[1747623842178,0.5736,2400.2,2399.8,0.55]
[1747623842384,10.07,2400.4,2399.8,9.4465]
[1747623842579,4.16584707,2400.5,2399.8,9.4465]
[1747623842580,4.16548167,2400.7,2400.3,0.55]
[1747623842785,4.16548167,2400.7,2400.5,0.55]
[1747623843016,4.16493127,2401.0,2400.5,0.55]
[1747623843691,4.16562526,2400.6,2400.5,0.55]
[1747623844021,4.16426545,2401.4,2400.5,0.55]
[1747623844022,4.16317381,2402.1,2400.7,0.55]
[1747623844222,4.16434484,2401.4,2400.9,8.55]
[1747623844422,4.16434484,2401.4,2401.0,26.41]
[1747623844727,4.16366823,2401.8,2401.3,0.55]
[1747623844923,4.16385904,2401.7,2401.3,0.55]
[1747623845091,4.16399424,2401.6,2401.3,0.55]
[1747623845444,4.16423752,2401.4,2401.3,0.55]
[1747623845606,4.16423752,2401.4,2401.3,8.965]
[1747623846133,4.16475781,2401.1,2401.0,17.995]
[1747623846325,4.16493127,2401.0,2400.9,8.413]
[1747623846489,4.16579031,2400.6,2400.5,0.55]
[1747623846688,4.16579879,2400.5,2400.4,0.8094]
[1747623846932,4.16579879,2400.5,2400.4,8.413]
[1747623847127,4.16597233,2400.4,2400.3,17.99]
[1747623848932,4.16597233,2400.4,2400.2,8.413]
[1747623848933,4.16614589,2400.3,2400.2,8.413]
[1747623849115,12.57414589,2400.3,2400.2,8.413]
[1747623849319,4.16614589,2400.3,2400.2,8.413]
[1747623849517,4.16614589,2400.3,2400.2,8.963]
[1747623849735,4.16614589,2400.3,2400.2,9.8043]
[1747623849936,4.16614589,2400.3,2400.2,8.963]
[1747623851836,0.5736,2400.8,2400.3,0.55]
[1747623852137,4.16468856,2401.2,2400.5,0.55]
[1747623852321,4.16544306,2400.8,2400.5,0.55]
[1747623852526,4.16562526,2400.6,2400.5,2.48314]
[1747623852709,4.16562526,2400.6,2400.5,0.55]
[1747623852915,4.16562526,2400.6,2400.5,8.962]
[1747623853930,4.16597233,2400.4,2400.3,17.99]
[1747623856040,4.16597233,2400.4,2400.3,18.54]
[1747623856335,4.16597233,2400.4,2400.3,17.99]
[1747623856535,4.99914944,2400.4,2400.3,17.99]
[1747623856910,4.16614589,2400.3,2400.2,8.412]
[1747623857836,4.16639505,2400.2,2400.1,8.412]
[1747623858019,4.16701391,2399.8,2399.7,0.55]
[1747623858219,4.16701391,2399.8,2399.7,8.963]
[1747623858742,4.16718756,2399.7,2399.6,18.7814]
[1747623858907,4.16718756,2399.7,2399.6,26.403]
[1747623859109,4.16718756,2399.7,2399.6,26.953]
[1747623859332,4.16697765,2399.9,2399.6,26.403]
[1747623859535,4.16614589,2400.3,2399.6,26.403]
[1747623859536,8.406,2400.3,2399.6,29.0999709]
[1747623859844,4.16665445,2400.1,2399.9,0.55]
[1747623860004,4.16608361,2400.4,2399.9,0.59166452]
[1747623860211,4.16617321,2400.3,2400.1,0.55]
[1747623860425,4.16617321,2400.3,2400.2,8.413]
[1747623862644,4.16666666,2400.0,2399.9,0.55]
[1747623862816,4.16666666,2400.0,2399.9,8.962]
[1747623863527,0.5736,2400.8,2400.1,0.55]
[1747623863709,19.0496,2401.2,2400.2,0.7672]
[1747623863910,4.16614589,2400.3,2400.2,1.3172]
[1747623865423,4.16614589,2400.3,2400.2,0.55]
[1747623865623,4.16614589,2400.3,2400.2,8.956]
[1747623866159,11.14033562,2401.2,2400.3,0.55]
[1747623866324,4.16590851,2400.5,2400.3,0.59165748]
[1747623866524,4.16590851,2400.5,2400.3,0.55]
[1747623866943,4.16571237,2400.6,2400.3,0.55]
[1747623867146,10.07,2401.2,2400.5,0.55]
[1747623867444,4.16502253,2401.0,2400.7,0.55]
[1747623867647,4.16502253,2401.0,2400.9,1.3531]
[1747623868145,4.1644642,2401.3,2400.9,1.3531]
[1747623868310,4.16466239,2401.2,2400.9,9.3531]
[1747623868513,0.49673562,2401.7,2400.9,17.7581]
[1747623868715,4.16452913,2401.3,2400.9,20.79092888]
[1747623868939,4.16462395,2401.2,2400.9,20.79092888]
[1747623869454,4.66052997,2401.7,2401.3,0.55]
[1747623869614,4.16389073,2401.6,2401.5,0.55]
[1747623870026,4.66061779,2401.7,2401.5,0.55]
[1747623870226,4.66061779,2401.7,2401.6,1.3042]
[1747623870227,0.49673562,2401.7,2401.6,1.3042]
[1747623870445,0.49673562,2401.7,2401.6,18.1122]
[1747623870649,4.66045298,2401.7,2401.6,1.3042]
[1747623870852,0.49673562,2401.7,2401.6,9.7082]
[1747623871054,4.16371736,2401.7,2401.6,9.7082]
[1747623871660,4.1622541,2402.6,2401.7,8.55]
[1747623872431,4.16260809,2402.4,2401.8,4.16353888]
[1747623872744,3.5155254,2403.0,2402.1,0.55]
[1747623872949,4.16219648,2402.6,2402.4,0.7781]
[1747623873127,1.43501477,2403.0,2402.5,18.534]
[1747623873318,4.16215766,2402.6,2402.5,18.534]
[1747623873525,4.16215766,2402.6,2402.5,26.937]
[1747623874119,4.16215766,2402.6,2402.5,18.534]
[1747623874318,4.99457401,2402.6,2402.5,26.937]
[1747623874856,4.99457401,2402.6,2402.5,18.534]
[1747623875153,4.99457401,2402.6,2402.5,26.937]
[1747623875458,4.16215766,2402.6,2402.5,26.937]
[1747623876333,4.16205735,2402.7,2402.5,26.937]
[1747623876662,4.16205735,2402.7,2402.6,0.55]
[1747623878545,4.16205735,2402.7,2402.6,8.951]
[1747623879528,4.16188692,2402.8,2402.7,1.3727]
[1747623879731,4.16165269,2402.9,2402.8,0.55]
[1747623879967,1.43501477,2403.0,2402.8,8.947]
[1747623880136,5.59653225,2403.0,2402.8,8.947]
[1747623880831,4.16163802,2402.9,2402.8,8.947]
[1747623881647,1.43501477,2403.0,2402.8,8.947]
[1747623881834,1.43501477,2403.0,2402.8,11.07768087]
[1747623882035,1.43501477,2403.0,2402.9,8.55]
[1747623882273,1.43501477,2403.0,2402.9,25.346]
[1747623883438,1.43501477,2403.0,2402.9,26.126]
[1747623884654,1.43501477,2403.0,2402.9,9.33]
[1747623884851,1.43501477,2403.0,2402.9,27.99985942]
[1747623885561,1.43501477,2403.0,2402.9,32.16149744]
[1747623887045,5.5964796,2403.0,2402.9,11.20585942]
[1747623887271,5.5964796,2403.0,2402.9,17.177]
[1747623887472,1.43501477,2403.0,2402.9,17.177]
[1747623887878,1.43501477,2403.0,2402.9,17.727]
[1747623888080,5.5964796,2403.0,2402.9,17.727]
[1747623888278,4.16181122,2402.8,2402.7,0.30533866]
[1747623888454,4.16171714,2402.9,2402.8,8.0]
[1747623888978,4.16171714,2402.9,2402.8,8.55]
[1747623889563,5.59647966,2403.0,2402.9,0.55]
[1747623890079,5.5964796,2403.0,2402.9,0.55]
[1747623890681,5.5964796,2403.0,2402.9,8.947]
[1747623890853,4.16163802,2402.9,2402.8,8.0]
[1747623891057,4.16163802,2402.9,2402.8,16.397]
[1747623891374,1.43501477,2403.0,2402.9,0.55]
[1747623891745,1.43501477,2403.0,2402.9,9.4183126]
[1747623891969,1.43501477,2403.0,2402.9,9.3767]
[1747623894370,1.43501477,2403.0,2402.9,13.53833802]
[1747623897246,1.43501477,2403.0,2402.9,9.3767]
[1747623897466,1.43501477,2403.0,2402.9,12.98960197]
[1747623897666,1.43501477,2403.0,2402.9,17.15123999]
[1747623898455,1.30501477,2403.0,2402.9,17.15123999]
[1747623898881,1.30501477,2403.0,2402.9,33.93223999]
[1747623899884,0.07118403,2403.0,2402.9,53.72304999]
[1747623900487,0.07118403,2403.0,2402.9,30.42795699]
[1747623900668,0.07118403,2403.0,2402.9,23.19123999]
[1747623901368,0.07118403,2403.0,2402.9,39.97023999]
[1747623901693,0.07118403,2403.0,2402.9,23.19123999]
[1747623901903,0.07118403,2403.0,2402.9,39.97023999]
[1747623902065,0.07118403,2403.0,2402.9,23.19123999]
[1747623902265,0.07118403,2403.0,2402.9,39.97023999]
[1747623902492,0.07118403,2403.0,2402.9,23.19123999]
[1747623902696,0.07118403,2403.0,2402.9,39.97023999]
[1747623902899,1e-08,2403.0,2402.9,46.74087999]
[1747623903084,1e-08,2403.0,2402.9,33.93023999]
[1747623903601,4.16007987,2403.8,2403.5,0.55]
[1747623903772,4.16028584,2403.7,2403.6,19.371]
[1747623903974,4.16028584,2403.7,2403.6,18.516]
[1747623904179,4.16028584,2403.7,2403.6,26.906]
[1747623905077,4.16028584,2403.7,2403.6,18.516]
[1747623905277,4.16028584,2403.7,2403.6,26.906]
[1747623905695,4.16028584,2403.7,2403.6,18.516]
[1747623905898,4.16028584,2403.7,2403.6,26.906]
[1747623907302,4.73388584,2403.7,2403.6,26.356]
[1747623907811,4.73454536,2403.3,2403.2,8.69872106]
[1747623908801,4.73454536,2403.3,2403.2,8.39]
[1747623909371,4.16163802,2402.9,2402.8,17.965]
[1747623909710,4.16215766,2402.6,2402.5,0.40857704]
[1747623909904,30.63208417,2402.6,2402.5,0.40857704]
[1747623910606,4.16319733,2402.0,2401.2,8.39]
[1747623910810,16.38312658,2402.0,2401.2,8.39]
[1747623911010,24.77112658,2402.0,2401.2,8.39]
[1747623912207,24.77112658,2402.0,2400.5,26.79080883]
[1747623912208,4.16458437,2401.2,2400.5,18.40280883]
[1747623912407,4.16527824,2400.8,2400.7,8.393]
[1747623912610,0.5736,2401.8,2400.7,8.393]
[1747623912808,12.16387611,2401.7,2400.8,0.7645]
[1747623913001,8.0,2401.7,2400.9,1.46575]
[1747623913202,4.16458437,2401.2,2401.1,0.55]
[1747623913604,4.16458437,2401.2,2400.5,19.21920883]
[1747623913908,4.1654057,2400.8,2400.7,0.55]